[Event "Late-Titled-Tuesday-Blitz-April-16-2024"]
[Site "Chess.com"]
[Date "2024.04.16"]
[Round "9"]
[White "Alexei_Gubajdullin"]
[Black "TanitoluwaAps116"]
[Result "1-0"]
[WhiteElo "2633"]
[BlackElo "2779"]
[TimeControl "180+1"]
[EndTime "15:44:33 PDT"]
[Termination "Alexei_Gubajdullin won by resignation"]

1. Nf3 {[%clk 0:03:00.9]} 1... Nf6 {[%clk 0:02:58.1]} 2. g3 {[%clk 0:02:58.5]}
2... d5 {[%clk 0:02:56.2]} 3. Bg2 {[%clk 0:02:54.1]} 3... Bf5 {[%clk 0:02:56.8]}
4. O-O {[%clk 0:02:54.2]} 4... e6 {[%clk 0:02:56.2]} 5. d3 {[%clk 0:02:54.7]}
5... c6 {[%clk 0:02:55.4]} 6. Nbd2 {[%clk 0:02:55.2]} 6... h6 {[%clk 0:02:53.9]}
7. Qe1 {[%clk 0:02:52.7]} 7... Bh7 {[%clk 0:02:49.9]} 8. e4 {[%clk 0:02:52.8]}
8... Be7 {[%clk 0:02:49.5]} 9. b3 {[%clk 0:02:47.4]} 9... Qa5 {[%clk 0:02:39.2]}
10. a3 {[%clk 0:02:44.8]} 10... Nbd7 {[%clk 0:02:30.4]} 11. Bb2 {[%clk
0:02:42.9]} 11... O-O {[%clk 0:02:23.7]} 12. e5 {[%clk 0:02:37.5]} 12... Ne8
{[%clk 0:02:21.9]} 13. b4 {[%clk 0:02:37.7]} 13... Qc7 {[%clk 0:02:20.7]} 14.
Nb3 {[%clk 0:02:37.2]} 14... c5 {[%clk 0:02:19.6]} 15. bxc5 {[%clk 0:02:35.4]}
15... Nxc5 {[%clk 0:02:20.5]} 16. Nbd4 {[%clk 0:02:16]} 16... Na4 {[%clk
0:02:16.3]} 17. Bc1 {[%clk 0:02:16.2]} 17... Rc8 {[%clk 0:02:07.7]} 18. Bd2
{[%clk 0:02:15.9]} 18... Qd7 {[%clk 0:01:58.4]} 19. Bb4 {[%clk 0:02:14.8]} 19...
Nc5 {[%clk 0:01:31.5]} 20. Nd2 {[%clk 0:02:03]} 20... b6 {[%clk 0:01:28.4]} 21.
a4 {[%clk 0:01:55.6]} 21... Nxd3 {[%clk 0:01:22]} 22. cxd3 {[%clk 0:01:47]}
22... Bxb4 {[%clk 0:01:20.5]} 23. Qe3 {[%clk 0:01:44.4]} 23... Rc3 {[%clk
0:01:16.7]} 24. N2f3 {[%clk 0:01:37.3]} 24... Rxd3 {[%clk 0:01:12.9]} 25. Qf4
{[%clk 0:01:37.3]} 25... Be4 {[%clk 0:01:01.9]} 26. Rfc1 {[%clk 0:01:32.7]}
26... Bc3 {[%clk 0:00:54.5]} 27. Ra3 {[%clk 0:01:27.2]} 27... Bd2 {[%clk
0:00:07.6]} 28. Nxd2 {[%clk 0:01:20.5]} 28... Rxa3 {[%clk 0:00:07.6]} 29. Bf1
{[%clk 0:01:00.5]} 29... Nc7 {[%clk 0:00:05.2]} 30. Nxe4 {[%clk 0:00:45.4]}
30... dxe4 {[%clk 0:00:05]} 31. Nc6 {[%clk 0:00:39.7]} 31... e3 {[%clk
0:00:03.3]} 32. fxe3 {[%clk 0:00:37.6]} 32... Nd5 {[%clk 0:00:02.3]} 33. Qd4
{[%clk 0:00:36]} 33... Rxe3 {[%clk 0:00:02.1]} 34. Bb5 {[%clk 0:00:32.4]} 34...
Qc7 {[%clk 0:00:01.4]} 35. Rc4 {[%clk 0:00:22.7]} 35... Rc8 {[%clk 0:00:01.4]}
36. Ne7+ {[%clk 0:00:19.1]} 36... Qxe7 {[%clk 0:00:02]} 37. Rxc8+ {[%clk
0:00:19.2]} 37... Kh7 {[%clk 0:00:02.6]} 38. Bd3+ {[%clk 0:00:17.8]} 38... g6
{[%clk 0:00:03.2]} 39. Be4 {[%clk 0:00:17.8]} 39... Re1+ {[%clk 0:00:03]} 40.
Kf2 {[%clk 0:00:17.4]} 40... Qb4 {[%clk 0:00:01.5]} 41. Qxb4 {[%clk 0:00:15.7]}
41... Nxb4 {[%clk 0:00:01.8]} 42. Kxe1 {[%clk 0:00:16.1]} 42... Na6 {[%clk
0:00:02.6]} 43. Ra8 {[%clk 0:00:15]} 43... Nc5 {[%clk 0:00:02]} 44. Bc2 {[%clk
0:00:14.6]} 44... a5 {[%clk 0:00:02.4]} 45. Rb8 {[%clk 0:00:14.3]} 45... Nd7
{[%clk 0:00:02.9]} 46. Rb7 {[%clk 0:00:14]} 46... Nxe5 {[%clk 0:00:03.5]} 47.
Rxb6 {[%clk 0:00:14.3]} 47... Kg7 {[%clk 0:00:03.5]} 48. Rb5 {[%clk 0:00:14.5]}
48... Nc6 {[%clk 0:00:03.7]} 49. Rc5 {[%clk 0:00:14.1]} 49... Nd4 {[%clk
0:00:03.6]} 50. Bd1 {[%clk 0:00:11.8]} 50... e5 {[%clk 0:00:03]} 51. Rxe5 {[%clk
0:00:10.9]} 51... f5 {[%clk 0:00:03.9]} 52. Rxa5 {[%clk 0:00:10.9]} 1-0

[Event "Late-Titled-Tuesday-Blitz-April-16-2024"]
[Site "Chess.com"]
[Date "2024.04.16"]
[Round "9"]
[White "LUISMIGUELOV"]
[Black "MaxLeto"]
[Result "0-1"]
[WhiteElo "2190"]
[BlackElo "2424"]
[TimeControl "180+1"]
[EndTime "15:44:33 PDT"]
[Termination "MaxLeto won by checkmate"]

1. d4 {[%clk 0:02:24.7]} 1... h5 {[%clk 0:02:59.4]} 2. c3 {[%clk 0:02:24.6]}
2... h4 {[%clk 0:03:00.3]} 3. h3 {[%clk 0:02:23.4]} 3... d5 {[%clk 0:03:00.4]}
4. Bf4 {[%clk 0:02:23]} 4... Bf5 {[%clk 0:03:00.1]} 5. Qb3 {[%clk 0:02:21.7]}
5... b6 {[%clk 0:02:57.3]} 6. e3 {[%clk 0:02:19.6]} 6... e6 {[%clk 0:02:54.8]}
7. Nf3 {[%clk 0:02:18.7]} 7... Bd6 {[%clk 0:02:49.3]} 8. Bxd6 {[%clk 0:02:16.5]}
8... cxd6 {[%clk 0:02:47.7]} 9. Bb5+ {[%clk 0:02:14.5]} 9... Nd7 {[%clk
0:02:48.1]} 10. Nbd2 {[%clk 0:02:14.1]} 10... Ne7 {[%clk 0:02:25.2]} 11. c4
{[%clk 0:02:13.2]} 11... Be4 {[%clk 0:01:55]} 12. O-O {[%clk 0:02:07.6]} 12...
O-O {[%clk 0:01:47.4]} 13. Ng5 {[%clk 0:02:05.3]} 13... Bg6 {[%clk 0:01:37.4]}
14. Bxd7 {[%clk 0:01:56.2]} 14... Qxd7 {[%clk 0:01:36.6]} 15. cxd5 {[%clk
0:01:53.8]} 15... Nxd5 {[%clk 0:01:37.5]} 16. Rac1 {[%clk 0:01:45.1]} 16... Rac8
{[%clk 0:01:35.3]} 17. Ngf3 {[%clk 0:01:32.8]} 17... Qe7 {[%clk 0:01:28.2]} 18.
Rfd1 {[%clk 0:01:27.3]} 18... Bh5 {[%clk 0:01:19]} 19. Re1 {[%clk 0:01:20.3]}
19... Qf6 {[%clk 0:01:01.2]} 20. Qa3 {[%clk 0:01:11.5]} 20... Qe7 {[%clk
0:00:59.3]} 21. e4 {[%clk 0:01:09.7]} 21... Nf4 {[%clk 0:00:57.9]} 22. Qe3
{[%clk 0:01:08.5]} 22... e5 {[%clk 0:00:52.1]} 23. dxe5 {[%clk 0:01:06.2]} 23...
dxe5 {[%clk 0:00:53]} 24. Nc4 {[%clk 0:00:56.4]} 24... Bxf3 {[%clk 0:00:23.9]}
25. Qxf3 {[%clk 0:00:55.2]} 25... Rc5 {[%clk 0:00:21.4]} 26. b4 {[%clk
0:00:51.9]} 26... Rc6 {[%clk 0:00:19.1]} 27. Ne3 {[%clk 0:00:46.5]} 27... Rxc1
{[%clk 0:00:10.6]} 28. Rxc1 {[%clk 0:00:46.3]} 28... Qxb4 {[%clk 0:00:11.4]} 29.
Nf5 {[%clk 0:00:42.8]} 29... g6 {[%clk 0:00:08.9]} 30. Nxh4 {[%clk 0:00:41.7]}
30... Rd8 {[%clk 0:00:09]} 31. a3 {[%clk 0:00:33]} 31... Qb2 {[%clk 0:00:05.6]}
32. Rf1 {[%clk 0:00:32.5]} 32... Rd3 {[%clk 0:00:04.4]} 33. Qg4 {[%clk
0:00:30.6]} 33... Qxa3 {[%clk 0:00:03.9]} 34. Nf5 {[%clk 0:00:28.7]} 34... Qc5
{[%clk 0:00:03.6]} 35. h4 {[%clk 0:00:25.8]} 35... Rd2 {[%clk 0:00:02.8]} 36. h5
{[%clk 0:00:25.1]} 36... Nxh5 {[%clk 0:00:03.1]} 37. Nh6+ {[%clk 0:00:23.1]}
37... Kg7 {[%clk 0:00:02.8]} 38. Nf5+ {[%clk 0:00:23.1]} 38... Kg8 {[%clk
0:00:03.2]} 39. Nh4 {[%clk 0:00:22.4]} 39... Nf4 {[%clk 0:00:03.2]} 40. g3
{[%clk 0:00:20.5]} 40... Ne6 {[%clk 0:00:02.9]} 41. Nxg6 {[%clk 0:00:19.7]}
41... fxg6 {[%clk 0:00:02.9]} 42. Qxe6+ {[%clk 0:00:19.7]} 42... Kg7 {[%clk
0:00:02.7]} 43. Kg2 {[%clk 0:00:16.9]} 43... a5 {[%clk 0:00:02.8]} 44. Qe8
{[%clk 0:00:14.9]} 44... a4 {[%clk 0:00:02.6]} 45. Qxa4 {[%clk 0:00:14]} 45...
b5 {[%clk 0:00:03.2]} 46. Qa6 {[%clk 0:00:13]} 46... b4 {[%clk 0:00:03.2]} 47.
Qb7+ {[%clk 0:00:12.7]} 47... Kf6 {[%clk 0:00:03.7]} 48. Ra1 {[%clk 0:00:09.2]}
48... Qxf2+ {[%clk 0:00:03.4]} 49. Kh3 {[%clk 0:00:07.8]} 49... Qh2+ {[%clk
0:00:03.9]} 50. Kg4 {[%clk 0:00:08.1]} 50... Qh5# {[%clk 0:00:04.8]} 0-1

[Event "Late-Titled-Tuesday-Blitz-April-16-2024"]
[Site "Chess.com"]
[Date "2024.04.16"]
[Round "9"]
[White "RuperezA"]
[Black "1800_strength"]
[Result "1-0"]
[WhiteElo "2622"]
[BlackElo "2723"]
[TimeControl "180+1"]
[EndTime "15:44:35 PDT"]
[Termination "RuperezA won by resignation"]

1. e4 {[%clk 0:03:00.9]} 1... e6 {[%clk 0:02:51.2]} 2. b3 {[%clk 0:03:00.8]}
2... a6 {[%clk 0:02:51.6]} 3. d4 {[%clk 0:03:00.5]} 3... d5 {[%clk 0:02:51.9]}
4. e5 {[%clk 0:02:57.6]} 4... c5 {[%clk 0:02:52.1]} 5. c3 {[%clk 0:02:56.8]}
5... Bd7 {[%clk 0:02:52.1]} 6. Nf3 {[%clk 0:02:55.2]} 6... Bb5 {[%clk
0:02:52.6]} 7. c4 {[%clk 0:02:50.6]} 7... dxc4 {[%clk 0:02:52.1]} 8. bxc4 {[%clk
0:02:51.5]} 8... Bc6 {[%clk 0:02:52.4]} 9. Bb2 {[%clk 0:02:46]} 9... cxd4 {[%clk
0:02:42.1]} 10. Nxd4 {[%clk 0:02:41.9]} 10... Bb4+ {[%clk 0:02:42.4]} 11. Ke2
{[%clk 0:02:10.6]} 11... Qh4 {[%clk 0:02:26.3]} 12. Nc3 {[%clk 0:01:53.8]} 12...
Ne7 {[%clk 0:02:20.8]} 13. a3 {[%clk 0:01:29]} 13... Bc5 {[%clk 0:02:03.1]} 14.
Nxc6 {[%clk 0:01:24.7]} 14... Nbxc6 {[%clk 0:02:04]} 15. g3 {[%clk 0:01:10.5]}
15... Qxc4+ {[%clk 0:01:55.3]} 16. Ke1 {[%clk 0:01:10.5]} 16... Qd4 {[%clk
0:01:54.5]} 17. Qxd4 {[%clk 0:01:02.8]} 17... Nxd4 {[%clk 0:01:55.4]} 18. Rd1
{[%clk 0:00:55.2]} 18... O-O-O {[%clk 0:01:30.4]} 19. Bg2 {[%clk 0:00:47.6]}
19... Nc2+ {[%clk 0:01:28.2]} 20. Ke2 {[%clk 0:00:47.1]} 20... Nxa3 {[%clk
0:01:28.6]} 21. Ne4 {[%clk 0:00:45.3]} 21... Bb4 {[%clk 0:01:24.7]} 22. Nd6+
{[%clk 0:00:39.5]} 22... Kb8 {[%clk 0:01:22.2]} 23. Nxb7 {[%clk 0:00:08.5]}
23... Rxd1 {[%clk 0:01:23.1]} 24. Rxd1 {[%clk 0:00:08.6]} 24... Rc8 {[%clk
0:01:20.5]} 25. Be4 {[%clk 0:00:05.8]} 25... Nd5 {[%clk 0:01:19.3]} 26. Nd6
{[%clk 0:00:05.3]} 26... Rc7 {[%clk 0:01:12.9]} 27. Bxa3 {[%clk 0:00:02.9]}
27... Nc3+ {[%clk 0:01:11.2]} 28. Kd3 {[%clk 0:00:02.1]} 28... Nxd1 {[%clk
0:00:59.3]} 29. Bxb4 {[%clk 0:00:02]} 29... Nxf2+ {[%clk 0:01:00]} 30. Ke3
{[%clk 0:00:02.4]} 30... Nxe4 {[%clk 0:00:56]} 31. Kxe4 {[%clk 0:00:03.3]} 31...
Ka7 {[%clk 0:00:48.6]} 32. Ba5 {[%clk 0:00:03.1]} 32... Rd7 {[%clk 0:00:41.9]}
33. h4 {[%clk 0:00:03.1]} 33... f5+ {[%clk 0:00:42.3]} 34. Kd4 {[%clk
0:00:02.9]} 34... g6 {[%clk 0:00:37.1]} 35. Kc5 {[%clk 0:00:03.5]} 35... Rg7
{[%clk 0:00:36.4]} 36. Kc6 {[%clk 0:00:04.4]} 36... g5 {[%clk 0:00:37]} 37. h5
{[%clk 0:00:04.3]} 37... f4 {[%clk 0:00:36.6]} 38. g4 {[%clk 0:00:04.6]} 38...
f3 {[%clk 0:00:36.4]} 39. Ne4 {[%clk 0:00:03.6]} 39... h6 {[%clk 0:00:34.7]} 40.
Bb6+ {[%clk 0:00:03.7]} 40... Kb8 {[%clk 0:00:33.9]} 41. Kd6 {[%clk 0:00:04.3]}
41... Rb7 {[%clk 0:00:31.1]} 42. Bc5 {[%clk 0:00:04.7]} 42... a5 {[%clk
0:00:27.3]} 43. Kxe6 {[%clk 0:00:04.9]} 43... a4 {[%clk 0:00:27.6]} 44. Kf6
{[%clk 0:00:04.8]} 44... Kc7 {[%clk 0:00:25.2]} 45. e6 {[%clk 0:00:04.9]} 45...
Kc6 {[%clk 0:00:21.3]} 46. e7 {[%clk 0:00:04.6]} 46... Rb8 {[%clk 0:00:20.1]}
47. Ba3 {[%clk 0:00:03.5]} 47... Kd5 {[%clk 0:00:19.9]} 48. Nf2 {[%clk
0:00:03.1]} 48... Kc4 {[%clk 0:00:20.2]} 49. Kf7 {[%clk 0:00:03.6]} 49... Kb3
{[%clk 0:00:17.6]} 50. Bd6 {[%clk 0:00:03.7]} 50... a3 {[%clk 0:00:17.4]} 51.
Bxa3 {[%clk 0:00:03.2]} 51... Kxa3 {[%clk 0:00:17.6]} 52. e8=Q {[%clk
0:00:04.1]} 52... Rxe8 {[%clk 0:00:17.8]} 53. Kxe8 {[%clk 0:00:05]} 53... Kb4
{[%clk 0:00:18.5]} 54. Kf7 {[%clk 0:00:05.9]} 54... Kc5 {[%clk 0:00:19.1]} 55.
Kg6 {[%clk 0:00:06.4]} 55... Kd4 {[%clk 0:00:20]} 56. Kxh6 {[%clk 0:00:07]}
56... Ke3 {[%clk 0:00:20.9]} 57. Nh3 {[%clk 0:00:07.3]} 57... Ke2 {[%clk
0:00:19.7]} 58. Kxg5 {[%clk 0:00:07.2]} 58... Kf1 {[%clk 0:00:20.2]} 59. Kh4
{[%clk 0:00:07.4]} 59... Kg2 {[%clk 0:00:20.8]} 60. h6 {[%clk 0:00:08]} 1-0

[Event "Late-Titled-Tuesday-Blitz-April-16-2024"]
[Site "Chess.com"]
[Date "2024.04.16"]
[Round "9"]
[White "Msb2"]
[Black "DenLaz"]
[Result "1/2-1/2"]
[WhiteElo "3016"]
[BlackElo "3105"]
[TimeControl "180+1"]
[EndTime "15:44:41 PDT"]
[Termination "Game drawn by repetition"]

1. d4 {[%clk 0:03:00.9]} 1... Nf6 {[%clk 0:03:00.5]} 2. c4 {[%clk 0:03:00.8]}
2... e6 {[%clk 0:03:01.1]} 3. Nc3 {[%clk 0:03:01.5]} 3... Bb4 {[%clk 0:03:01.7]}
4. e3 {[%clk 0:03:02.1]} 4... O-O {[%clk 0:03:02.4]} 5. Bd2 {[%clk 0:03:02.8]}
5... d5 {[%clk 0:03:02.4]} 6. Nf3 {[%clk 0:03:03.4]} 6... b6 {[%clk 0:03:01.4]}
7. cxd5 {[%clk 0:03:03.9]} 7... exd5 {[%clk 0:03:02.3]} 8. Rc1 {[%clk
0:03:04.4]} 8... c5 {[%clk 0:03:00.6]} 9. Ne5 {[%clk 0:03:04.8]} 9... c4 {[%clk
0:02:29.5]} 10. b3 {[%clk 0:03:03.8]} 10... Bxc3 {[%clk 0:02:29.6]} 11. Bxc3
{[%clk 0:03:04.3]} 11... b5 {[%clk 0:02:30.3]} 12. a4 {[%clk 0:03:05]} 12... a6
{[%clk 0:02:30.2]} 13. Be2 {[%clk 0:03:00.4]} 13... Bf5 {[%clk 0:02:25.4]} 14.
O-O {[%clk 0:02:53.8]} 14... Re8 {[%clk 0:02:25.1]} 15. bxc4 {[%clk 0:02:37.5]}
15... bxc4 {[%clk 0:02:24.8]} 16. Bb4 {[%clk 0:02:37.5]} 16... Qc7 {[%clk
0:02:20.7]} 17. f3 {[%clk 0:01:50.8]} 17... Nc6 {[%clk 0:02:18.1]} 18. Bc3
{[%clk 0:01:51.3]} 18... Rad8 {[%clk 0:01:50.7]} 19. Qe1 {[%clk 0:01:48.1]}
19... h6 {[%clk 0:01:47.4]} 20. Qg3 {[%clk 0:01:45.4]} 20... Bh7 {[%clk
0:01:33.3]} 21. Kh1 {[%clk 0:01:43.2]} 21... Qc8 {[%clk 0:01:25.3]} 22. e4
{[%clk 0:01:24.1]} 22... dxe4 {[%clk 0:01:23.3]} 23. Nxc6 {[%clk 0:01:24]} 23...
Qxc6 {[%clk 0:01:21.9]} 24. d5 {[%clk 0:01:24.5]} 24... Rxd5 {[%clk 0:01:06.8]}
25. Bxf6 {[%clk 0:01:20]} 25... Qxf6 {[%clk 0:01:07.7]} 26. fxe4 {[%clk
0:01:20.3]} 26... Rg5 {[%clk 0:01:08.2]} 27. Rxf6 {[%clk 0:00:58]} 27... Rxg3
{[%clk 0:01:07.6]} 28. hxg3 {[%clk 0:00:52.1]} 28... gxf6 {[%clk 0:01:06.9]} 29.
Bxc4 {[%clk 0:00:52.6]} 29... a5 {[%clk 0:00:50]} 30. Bb5 {[%clk 0:00:36.7]}
30... Rxe4 {[%clk 0:00:42.5]} 31. Rc8+ {[%clk 0:00:37]} 31... Kg7 {[%clk
0:00:42.6]} 32. Ra8 {[%clk 0:00:37.7]} 32... Rb4 {[%clk 0:00:36.2]} 33. Rxa5
{[%clk 0:00:35.6]} 33... Be4 {[%clk 0:00:36.6]} 34. Kh2 {[%clk 0:00:25]} 34...
Rb2 {[%clk 0:00:36]} 35. Bf1 {[%clk 0:00:25.1]} 35... Rf2 {[%clk 0:00:34.3]} 36.
Kg1 {[%clk 0:00:24.2]} 36... Ra2 {[%clk 0:00:34.7]} 37. Kh2 {[%clk 0:00:24.8]}
37... Kg6 {[%clk 0:00:34]} 38. Ra7 {[%clk 0:00:23.3]} 38... f5 {[%clk
0:00:30.1]} 39. a5 {[%clk 0:00:22.5]} 39... h5 {[%clk 0:00:29.4]} 40. a6 {[%clk
0:00:22.8]} 40... f6 {[%clk 0:00:16.2]} 41. Rc7 {[%clk 0:00:18.1]} 41... Ra1
{[%clk 0:00:16.5]} 42. Bc4 {[%clk 0:00:15.6]} 42... Kh6 {[%clk 0:00:11.6]} 43.
a7 {[%clk 0:00:15.8]} 43... Ra3 {[%clk 0:00:07.5]} 44. Re7 {[%clk 0:00:10.5]}
44... Kg6 {[%clk 0:00:05.8]} 45. Rd7 {[%clk 0:00:06.8]} 45... Kh6 {[%clk
0:00:06.2]} 46. Rf7 {[%clk 0:00:03.7]} 46... Kg6 {[%clk 0:00:06.5]} 47. Re7
{[%clk 0:00:04.2]} 47... Kh6 {[%clk 0:00:07]} 48. Kg1 {[%clk 0:00:03.7]} 48...
Kg6 {[%clk 0:00:05.8]} 49. Kf2 {[%clk 0:00:03.8]} 49... Kh6 {[%clk 0:00:06.1]}
50. Kg1 {[%clk 0:00:02.3]} 50... Kg6 {[%clk 0:00:06.4]} 51. Kf2 {[%clk 0:00:03]}
51... Kh6 {[%clk 0:00:06.8]} 52. Kg1 {[%clk 0:00:02.6]} 1/2-1/2

[Event "Late-Titled-Tuesday-Blitz-April-16-2024"]
[Site "Chess.com"]
[Date "2024.04.16"]
[Round "9"]
[White "dropstoneDP"]
[Black "jcibarra"]
[Result "1/2-1/2"]
[WhiteElo "3047"]
[BlackElo "2935"]
[TimeControl "180+1"]
[EndTime "15:44:43 PDT"]
[Termination "Game drawn by agreement"]

1. e4 {[%clk 0:03:00.9]} 1... c5 {[%clk 0:02:59.1]} 2. Nf3 {[%clk 0:03:00.6]}
2... Nc6 {[%clk 0:02:59.8]} 3. Bb5 {[%clk 0:03:00]} 3... e6 {[%clk 0:03:00.4]}
4. O-O {[%clk 0:02:59.3]} 4... Nd4 {[%clk 0:03:01.1]} 5. Nxd4 {[%clk 0:02:55.7]}
5... cxd4 {[%clk 0:03:02]} 6. c3 {[%clk 0:02:56]} 6... a6 {[%clk 0:03:01]} 7.
Bd3 {[%clk 0:02:51.3]} 7... Bc5 {[%clk 0:03:01.3]} 8. b4 {[%clk 0:02:49.4]} 8...
Ba7 {[%clk 0:03:00.8]} 9. Na3 {[%clk 0:02:49.1]} 9... Ne7 {[%clk 0:02:59]} 10.
Nc2 {[%clk 0:02:48.7]} 10... d5 {[%clk 0:02:58.9]} 11. cxd4 {[%clk 0:02:13.4]}
11... dxe4 {[%clk 0:02:41.6]} 12. Bxe4 {[%clk 0:02:14.3]} 12... O-O {[%clk
0:02:40.9]} 13. d3 {[%clk 0:02:10.1]} 13... Nd5 {[%clk 0:02:37.2]} 14. Bd2
{[%clk 0:02:06]} 14... Bd7 {[%clk 0:02:36.2]} 15. a4 {[%clk 0:01:59.5]} 15...
Rc8 {[%clk 0:02:35.4]} 16. b5 {[%clk 0:01:48.9]} 16... axb5 {[%clk 0:02:31.8]}
17. axb5 {[%clk 0:01:49.8]} 17... Bb6 {[%clk 0:02:31.8]} 18. Rb1 {[%clk
0:01:37.1]} 18... Qf6 {[%clk 0:02:21.9]} 19. Ne3 {[%clk 0:01:31.3]} 19... Qxd4
{[%clk 0:02:03.1]} 20. Nxd5 {[%clk 0:01:30.3]} 20... exd5 {[%clk 0:02:03.1]} 21.
Be3 {[%clk 0:01:30.9]} 21... Qe5 {[%clk 0:01:28.4]} 22. Bxb6 {[%clk 0:01:20.8]}
22... dxe4 {[%clk 0:01:26.7]} 23. dxe4 {[%clk 0:01:21.2]} 23... Bxb5 {[%clk
0:01:00.9]} 24. Bd4 {[%clk 0:01:21.5]} 24... Qe8 {[%clk 0:00:59.6]} 25. Qg4
{[%clk 0:01:10.9]} 25... f6 {[%clk 0:00:55.3]} 26. Rfe1 {[%clk 0:01:05]} 26...
Bd7 {[%clk 0:00:52.8]} 27. Qg3 {[%clk 0:01:04.4]} 27... Bc6 {[%clk 0:00:45.6]}
28. e5 {[%clk 0:01:04.7]} 28... fxe5 {[%clk 0:00:30.2]} 29. Rxe5 {[%clk
0:01:03.3]} 29... Qg6 {[%clk 0:00:30.8]} 30. Qxg6 {[%clk 0:00:48]} 30... hxg6
{[%clk 0:00:30.7]} 31. f3 {[%clk 0:00:48.9]} 31... Rfe8 {[%clk 0:00:29.8]} 32.
Rg5 {[%clk 0:00:45.7]} 32... Re6 {[%clk 0:00:29.8]} 33. h3 {[%clk 0:00:43.1]}
33... Rd8 {[%clk 0:00:30.4]} 34. Rb4 {[%clk 0:00:34.5]} 34... Rd5 {[%clk
0:00:21.2]} 35. Rxd5 {[%clk 0:00:33]} 35... Bxd5 {[%clk 0:00:22.1]} 36. Kf2
{[%clk 0:00:31.9]} 36... Bc6 {[%clk 0:00:22.1]} 37. Rb2 {[%clk 0:00:30.1]} 37...
Kf7 {[%clk 0:00:20.5]} 38. Ra2 {[%clk 0:00:29.9]} 38... Rd6 {[%clk 0:00:20.3]}
39. Ke3 {[%clk 0:00:29.5]} 39... Re6+ {[%clk 0:00:20.3]} 40. Kf4 {[%clk
0:00:29]} 40... Rd6 {[%clk 0:00:20.6]} 41. Be5 {[%clk 0:00:28.7]} 41... Rd5
{[%clk 0:00:17.5]} 42. h4 {[%clk 0:00:25.6]} 42... Rb5 {[%clk 0:00:14.3]} 43.
Ra8 {[%clk 0:00:24.8]} 43... Rd5 {[%clk 0:00:09.4]} 44. Rc8 {[%clk 0:00:22.9]}
44... Rd7 {[%clk 0:00:09]} 45. Rh8 {[%clk 0:00:21.4]} 45... Re7 {[%clk 0:00:09]}
46. Rd8 {[%clk 0:00:19.8]} 46... Re8 {[%clk 0:00:08.3]} 47. Rd2 {[%clk
0:00:18.5]} 47... Re7 {[%clk 0:00:07.1]} 48. Ra2 {[%clk 0:00:15.5]} 48... Re8
{[%clk 0:00:07.2]} 49. Ra5 {[%clk 0:00:14.8]} 49... Re7 {[%clk 0:00:07.6]} 50.
Rc5 {[%clk 0:00:13.3]} 50... Rd7 {[%clk 0:00:07.9]} 51. Ra5 {[%clk 0:00:11.3]}
51... Rd2 {[%clk 0:00:06.8]} 52. Kg3 {[%clk 0:00:09]} 52... Rd5 {[%clk
0:00:06.8]} 53. Rxd5 {[%clk 0:00:09]} 53... Bxd5 {[%clk 0:00:07.7]} 54. Kf4
{[%clk 0:00:09.3]} 54... b5 {[%clk 0:00:07.8]} 55. Bc3 {[%clk 0:00:09.2]} 55...
Bc4 {[%clk 0:00:08.1]} 56. Kg5 {[%clk 0:00:08.9]} 56... Bf1 {[%clk 0:00:06.7]}
1/2-1/2

[Event "Late-Titled-Tuesday-Blitz-April-16-2024"]
[Site "Chess.com"]
[Date "2024.04.16"]
[Round "9"]
[White "Rutricks"]
[Black "ATM622"]
[Result "0-1"]
[WhiteElo "2654"]
[BlackElo "2464"]
[TimeControl "180+1"]
[EndTime "15:44:44 PDT"]
[Termination "ATM622 won by resignation"]

1. g4 {[%clk 0:02:08.9]} 1... e5 {[%clk 0:02:59.4]} 2. Bg2 {[%clk 0:02:08.7]}
2... d5 {[%clk 0:02:55.3]} 3. c4 {[%clk 0:02:08.5]} 3... c6 {[%clk 0:02:53.5]}
4. cxd5 {[%clk 0:02:08.2]} 4... cxd5 {[%clk 0:02:52.8]} 5. Qb3 {[%clk
0:02:08.9]} 5... Ne7 {[%clk 0:02:50.2]} 6. Nc3 {[%clk 0:02:08.8]} 6... Nbc6
{[%clk 0:02:42.3]} 7. Nxd5 {[%clk 0:01:30.7]} 7... Nd4 {[%clk 0:02:42.2]} 8. Qc4
{[%clk 0:01:30.8]} 8... Be6 {[%clk 0:02:40.6]} 9. Nc7+ {[%clk 0:01:28.8]} 9...
Kd7 {[%clk 0:02:37.1]} 10. Nxe6 {[%clk 0:01:25.2]} 10... fxe6 {[%clk 0:02:37.2]}
11. Bxb7 {[%clk 0:01:20.4]} 11... Rb8 {[%clk 0:02:36.5]} 12. Be4 {[%clk
0:01:20.5]} 12... Qa5 {[%clk 0:02:29.8]} 13. e3 {[%clk 0:01:17]} 13... Rc8
{[%clk 0:02:26.6]} 14. Qd3 {[%clk 0:01:08.9]} 14... Qxa2 {[%clk 0:02:23.9]} 15.
Rb1 {[%clk 0:01:00]} 15... Nd5 {[%clk 0:02:23.1]} 16. exd4 {[%clk 0:00:33.4]}
16... Nf4 {[%clk 0:02:21.6]} 17. Qb5+ {[%clk 0:00:33.6]} 17... Kd8 {[%clk
0:02:20.6]} 18. Kd1 {[%clk 0:00:12.2]} 18... a6 {[%clk 0:02:17.4]} 19. Qb6+
{[%clk 0:00:12.4]} 19... Kd7 {[%clk 0:02:15.6]} 20. Ne2 {[%clk 0:00:12.9]} 20...
Nd5 {[%clk 0:02:10.8]} 21. Qb7+ {[%clk 0:00:12.7]} 21... Rc7 {[%clk 0:02:10.5]}
22. Bxd5 {[%clk 0:00:11.5]} 22... exd5 {[%clk 0:02:09.5]} 23. Qb8 {[%clk
0:00:10.2]} 23... Qxb1 {[%clk 0:02:07.8]} 24. Nc3 {[%clk 0:00:10.7]} 24... Qd3
{[%clk 0:02:05.5]} 25. Re1 {[%clk 0:00:07.2]} 25... e4 {[%clk 0:02:03.2]} 26.
Qb6 {[%clk 0:00:05.8]} 26... Qf3+ {[%clk 0:01:58.6]} 27. Kc2 {[%clk 0:00:05.5]}
27... Qd3+ {[%clk 0:01:57]} 28. Kd1 {[%clk 0:00:06]} 28... Bd6 {[%clk
0:01:56.8]} 29. Qa5 {[%clk 0:00:05.9]} 29... Rf8 {[%clk 0:01:32.7]} 30. Qxd5
{[%clk 0:00:05.6]} 30... Rxf2 {[%clk 0:01:31.7]} 31. Qxe4 {[%clk 0:00:02.8]}
31... Qf3+ {[%clk 0:01:27.4]} 32. Kc2 {[%clk 0:00:02.7]} 32... Qxe4+ {[%clk
0:01:26.4]} 33. Rxe4 {[%clk 0:00:03.6]} 33... Rxh2 {[%clk 0:01:27]} 34. Kd3
{[%clk 0:00:03.7]} 34... Rh1 {[%clk 0:01:24.9]} 35. Kc2 {[%clk 0:00:03.9]} 35...
Bb4 {[%clk 0:01:13.7]} 36. d5 {[%clk 0:00:03.5]} 36... a5 {[%clk 0:01:11.4]} 37.
d3 {[%clk 0:00:03]} 37... Rh2+ {[%clk 0:00:49]} 38. Kb3 {[%clk 0:00:03.5]} 38...
Bxc3 {[%clk 0:00:47.7]} 39. bxc3 {[%clk 0:00:04.4]} 39... Rb7+ {[%clk
0:00:44.1]} 40. Kc4 {[%clk 0:00:04.7]} 40... Rc2 {[%clk 0:00:43.2]} 41. Bf4
{[%clk 0:00:04.7]} 41... a4 {[%clk 0:00:38.3]} 42. d6 {[%clk 0:00:05.2]} 42...
a3 {[%clk 0:00:32.9]} 43. d4 {[%clk 0:00:05.7]} 43... a2 {[%clk 0:00:24.9]} 44.
Re7+ {[%clk 0:00:05.8]} 44... Kc8 {[%clk 0:00:21.1]} 45. Re8+ {[%clk 0:00:06.3]}
45... Kd7 {[%clk 0:00:20.8]} 46. Ra8 {[%clk 0:00:07]} 46... h6 {[%clk
0:00:16.2]} 47. d5 {[%clk 0:00:06.9]} 47... Rb1 {[%clk 0:00:14.6]} 48. Be5
{[%clk 0:00:07.1]} 48... a1=Q {[%clk 0:00:13.8]} 49. Rxa1 {[%clk 0:00:07.9]}
49... Rxa1 {[%clk 0:00:14.7]} 50. Kb3 {[%clk 0:00:07.8]} 50... Rcc1 {[%clk
0:00:14.5]} 51. c4 {[%clk 0:00:08.2]} 51... Rab1+ {[%clk 0:00:14.8]} 52. Ka2
{[%clk 0:00:08.2]} 52... Rd1 {[%clk 0:00:14.5]} 53. c5 {[%clk 0:00:08.2]} 53...
Rbc1 {[%clk 0:00:14.6]} 54. c6+ {[%clk 0:00:08.2]} 54... Kd8 {[%clk 0:00:14.8]}
55. d7 {[%clk 0:00:04.6]} 55... Rxd5 {[%clk 0:00:14.2]} 56. Bxg7 {[%clk
0:00:04.4]} 56... Rxc6 {[%clk 0:00:14]} 57. Bxh6 {[%clk 0:00:04.2]} 57... Rxh6
{[%clk 0:00:14]} 0-1